fUSD/lending_fUSD_20260107
["ID","MTS","AMOUNT","RATE_DAILY","PERIOD"]
[400693989,1767780641051,-1190.86629505,0.0001891,2]
[400693990,1767780641060,-286.0,0.00018912,2]
[400693991,1767780641069,-2351.0,0.00018974,2]
[400693992,1767780641079,-151.55,0.0001899,2]
[400693993,1767780641090,-5000.0,0.00019,2]
[400693994,1767780641100,-300.0,0.00019,2]
[400693995,1767780641111,-286.0,0.00019022,2]
[400693996,1767780641120,-286.0,0.00019078,2]
[400693997,1767780641130,-193.66,0.0001914,2]
[400693998,1767780641140,-286.0,0.00019199,2]
[400693999,1767780641150,-1000.0,0.00019238,2]
[400694000,1767780641159,-2000.0,0.00019238,2]
[400694001,1767780641168,-176.00349903,0.00019238,2]
[400694002,1767780641179,-2000.0,0.00019238,2]
[400694003,1767780641188,-286.0,0.00019249,2]
[400694004,1767780641198,-286.0,0.00019302,2]
[400694005,1767780641208,-500.0,0.00019355,2]
[400694006,1767780641218,-286.0,0.00019385,2]
[400694007,1767780641228,-286.0,0.00019433,2]
[400694008,1767780641238,-5000.0,0.000195,2]
[400694009,1767780641247,-496.61558298,0.00019786,2]
[400694010,1767780641257,-2500.0,0.00019786,2]
[400694011,1767780641267,-5000.0,0.0002,2]
[400694012,1767780641277,-193.66,0.00020097,2]
[400694013,1767780641287,-3000.0,0.00020334,2]
[400694014,1767780641296,-5000.0,0.000205,2]
[400694015,1767780641306,-404.0,0.00020544,2]
[400694016,1767780641316,-823.0,0.00020544,2]
[400694017,1767780641326,-743.29710594,0.00020711,2]
[400694018,1767780641336,-500.0,0.00020711,2]
[400694019,1767780641346,-500.0,0.00020711,2]
[400694020,1767780641356,-500.0,0.00020711,2]
[400694021,1767780641369,-500.0,0.00020711,2]
[400694022,1767780641379,-500.0,0.00020711,2]
[400694023,1767780641389,-500.0,0.00020711,2]
[400694024,1767780641399,-500.0,0.00020711,2]
[400694025,1767780641409,-500.0,0.00020711,2]
[400694026,1767780641420,-500.0,0.00020711,2]
[400694027,1767780641431,-500.0,0.00020711,2]
[400694028,1767780641443,-500.0,0.00020711,2]
[400694029,1767780641453,-574.12855637,0.00020711,2]
[400694030,1767780641462,-250.0,0.00020711,2]
[400694031,1767780641472,-250.0,0.00020711,2]
[400694032,1767780641484,-250.0,0.00020711,2]
[400694033,1767780641494,-500.0,0.00020711,2]
[400694034,1767780641504,-250.0,0.00020711,2]
[400694035,1767780641516,-500.0,0.00020711,2]
[400694036,1767780641526,-250.0,0.00020711,2]
[400694037,1767780641536,-500.0,0.00020711,2]
[400694038,1767780641546,-250.0,0.00020711,2]
[400694039,1767780641555,-500.0,0.00020711,2]
[400694040,1767780641565,-250.0,0.00020711,2]
[400694041,1767780641575,-500.0,0.00020711,2]
[400694042,1767780641584,-250.0,0.00020711,2]
[400694043,1767780641594,-500.0,0.00020711,2]
[400694044,1767780641603,-250.0,0.00020711,2]
[400694045,1767780641613,-500.0,0.00020711,2]
[400694046,1767780641623,-250.0,0.00020711,2]
[400694047,1767780641633,-500.0,0.00020711,2]
[400694048,1767780641643,-250.0,0.00020711,2]
[400694049,1767780641654,-500.0,0.00020711,2]
[400694050,1767780641665,-500.0,0.00020711,2]
[400694051,1767780641675,-500.0,0.00020711,2]
[400694052,1767780641686,-250.0,0.00020711,2]
[400694053,1767780641696,-250.0,0.00020711,2]
[400694054,1767780641705,-250.0,0.00020711,2]
[400694055,1767780641715,-250.0,0.00020711,2]
[400694056,1767780641725,-250.0,0.00020711,2]
[400694057,1767780641735,-250.0,0.00020711,2]
[400694058,1767780641748,-200.0,0.00020711,2]
[400694059,1767780641758,-250.0,0.00020711,2]
[400694060,1767780641768,-207.4,0.00020711,2]
[400694061,1767780641778,-215.0738,0.00020711,2]
[400694062,1767780641787,-223.0315306,0.00020711,2]
[400694063,1767780641797,-231.28369723,0.00020711,2]
[400694064,1767780641807,-239.84119403,0.00020711,2]
[400694065,1767780641817,-248.71531821,0.00020711,2]
[400694066,1767780641827,-257.91778498,0.00020711,2]
[400694067,1767780641836,-267.46074303,0.00020711,2]
[400694068,1767780641846,-277.35679052,0.00020711,2]
[400694069,1767780641856,-3292.0,0.00020856,2]
[400694070,1767780641866,-3500.0,0.00020882,2]
[400694071,1767780641876,-2638.8599379,0.00020978,2]
[400694072,1767780641886,-6520.3281964,0.00020978,2]
[400694073,1767780641896,-5000.0,0.00021,2]
[400694074,1767780641905,-350.0,0.00021,2]
[400694075,1767780641915,-400.0,0.00021,7]
[400694076,1767780641926,-193.66,0.00021054,2]
[400694077,1767780641936,-640.4,0.000212,7]
[400694078,1767780641946,-223.69537497,0.00021259,2]
[400694079,1767780641955,-250.0,0.00021371,2]
[400694080,1767780641967,-4000.0,0.0002143,2]
[400694081,1767780641977,-5000.0,0.000215,2]
[400694082,1767780641987,-2941.3835048,0.00021978,2]
[400694083,1767780641997,-5000.0,0.00022,2]
[400694084,1767780642007,-1081.85,0.00022,7]
[400694085,1767780642016,-193.66,0.00022011,2]
[400694086,1767780642026,-287.61899177,0.0002208,2]
[400694087,1767780642036,-1152.0,0.00022468,2]
[400694088,1767780642046,-5179.10540681,0.000225,2]
[400694089,1767780642055,-1197.25,0.00022562,2]
[400694090,1767780642065,-2390.29,0.00022562,2]
[400694091,1767780642074,-500.0,0.00022665,2]
[400694092,1767780642084,-653.03142616,0.00022755,2]
[400694093,1767780642094,-4609.0,0.00022924,2]
[400694094,1767780642104,-539.43776376,0.00022954,2]
[400694095,1767780642114,-193.66,0.00022968,2]
[400694096,1767780642125,-5000.0,0.00023,2]
[400694097,1767780642138,-400.0,0.00023,2]
[400694098,1767780642148,-1647.7407311,0.00023036,2]
[400694099,1767780642158,-298.26089446,0.00023449,2]
[400694100,1767780642168,-2638.8599379,0.00023563,2]
[400694101,1767780642178,-6520.3281964,0.00023563,2]
[400694102,1767780642188,-193.66,0.00023925,2]
[400694103,1767780642197,-5000.0,0.00024,2]
[400694104,1767780642207,-1971.04,0.00024168,2]
[400694105,1767780642217,-158.54802209,0.00024254,2]
[400694106,1767780642227,-1081.85,0.000243,7]
[400694107,1767780642236,-918.0,0.00024573,2]
[400694108,1767780642246,-3240.0,0.00024658,2]
[400694109,1767780642256,-309.29654756,0.00024818,2]
[400694110,1767780642267,-1307.13264214,0.0002487,2]
[400694111,1767780642277,-1000.0,0.0002487,2]
[400694112,1767780642287,-193.66,0.00024882,2]
[400694113,1767780642296,-2000.0,0.000249,2]
[400694114,1767780642309,-1083.0,0.00025198,2]
[400694115,1767780642319,-3174.75,0.00025786,2]
[400694116,1767780642330,-9999.99,0.00025786,2]
[400694117,1767780642340,-9999.99,0.00025786,2]
[400694118,1767780642350,-2095.06,0.00025786,2]
[400694119,1767780642360,-3203.34,0.00025786,2]
[400694120,1767780642370,-499.99,0.00025786,2]
[400694121,1767780642380,-9999.99,0.00025786,2]
[400694122,1767780642390,-9999.99,0.00025786,2]
[400694123,1767780642400,-78844.1,0.00025786,2]
[400694124,1767780642411,-150.99,0.00025786,2]
[400694125,1767780642423,-999.99,0.00025786,2]
[400694126,1767780642436,-299.99,0.00025786,12]
[400694127,1767780642447,-10019.8,0.00025786,2]
[400694128,1767780642456,-10052.25,0.00025786,10]
[400694129,1767780642466,-4999.99,0.00025786,2]
[400694130,1767780642476,-9999.99,0.00025786,2]
[400694131,1767780642487,-150.99,0.00025786,2]
[400694132,1767780642497,-193.66,0.00025839,2]
[400694133,1767780642509,-1647.7407311,0.00025908,2]
[400694134,1767780642519,-158.54802209,0.00025987,2]
[400694135,1767780642529,-2638.8599379,0.00026149,2]
[400694136,1767780642538,-6520.3281964,0.00026149,2]
[400694137,1767780642548,-320.74051982,0.00026187,2]
[400694138,1767780642558,-289.71,0.00026688,2]
[400694139,1767780642567,-472.0,0.00027397,4]
[400694140,1767780642577,-447.2,0.00027397,3]
[400694141,1767780642588,-500.0,0.00027397,20]
[400694142,1767780642597,-332.60791905,0.00027556,2]
[400694143,1767780642607,-5665.87,0.00027671,2]
[400694144,1767780642617,-158.54802209,0.00027719,2]
[400694145,1767780642627,-1081.85,0.000278,7]
[400694146,1767780642637,-573.26613188,0.00028033,5]
[400694147,1767780642646,-162.68077259,0.00028033,5]
[400694148,1767780642656,-554.22609528,0.00028033,5]
[400694149,1767780642666,-249.33886025,0.00028033,5]
[400694150,1767780642675,-160.50727141,0.00028033,5]
[400694151,1767780642685,-500.0,0.00028033,5]
[400694152,1767780642695,-500.0,0.00028033,5]
[400694153,1767780642705,-215.11491997,0.00028033,5]
[400694154,1767780642716,-500.0,0.00028033,5]
[400694155,1767780642726,-500.0,0.00028033,5]
[400694156,1767780642737,-500.0,0.00028033,5]
[400694157,1767780642747,-502.91123573,0.00028033,5]
[400694158,1767780642757,-502.71154611,0.00028033,5]
[400694159,1767780642768,-500.0,0.00028033,5]
[400694160,1767780642777,-273.37639111,0.00028033,5]
[400694161,1767780642787,-458.49867201,0.00028033,5]
[400694162,1767780642797,-645.16964219,0.00028033,5]
[400694163,1767780642806,-500.0,0.00028033,5]
[400694164,1767780642816,-500.0,0.00028033,5]
[400694165,1767780642825,-502.46613412,0.00028033,5]
[400694166,1767780642835,-501.26859067,0.00028033,5]
[400694167,1767780642846,-500.0,0.00028033,5]
[400694168,1767780642857,-368.40387299,0.00028581,5]
[400694169,1767780642868,-500.0,0.00028581,5]
[400694170,1767780642879,-1000.0,0.00028581,5]
[400694171,1767780642889,-1000.0,0.00028581,5]
[400694172,1767780642899,-503.56850763,0.00028581,5]
[400694173,1767780642910,-1000.0,0.00028581,5]
[400694174,1767780642922,-1000.0,0.000286,2]
[400694175,1767780642933,-2638.8599379,0.00028735,2]
[400694176,1767780642944,-6520.3281964,0.00028735,2]
[400694177,1767780642955,-1647.7407311,0.00028779,2]
[400694178,1767780642965,-344.91441206,0.00028925,2]
[400694180,1767780642975,-1500.0,0.00029129,5]
[400694181,1767780642985,-509.85151383,0.00029129,5]
[400694183,1767780642995,-158.54802209,0.00029452,2]
[400694186,1767780643366,-2000.0,0.00029677,5]
[400694187,1767780643377,-938.63568615,0.00029677,2]
[400694188,1767780643387,-509.0,0.00029877,2]
[400694189,1767780643398,-1921.22,0.000302,14]
[400694190,1767780643408,-503.18143071,0.00030225,5]
[400694191,1767780643418,-357.6762453,0.00030294,2]
[400694192,1767780643428,-1081.85,0.000303,7]
[400694193,1767780643439,-1060.87558749,0.00030421,15]
[400694194,1767780643450,-509.0,0.00030943,3]
[400694195,1767780643460,-4052.0,0.0003099,5]
[400694196,1767780643471,-158.54802209,0.00031184,2]
[400694197,1767780643482,-460.57915656,0.00031244,2]
[400694198,1767780643491,-14174.26,0.00031267,2]
[400694199,1767780643501,-785.08,0.000313,30]
[400694200,1767780643512,-2638.8599379,0.00031321,2]
[400694201,1767780643522,-6520.3281964,0.00031321,2]
[400694202,1767780643532,-150.0,0.00031344,2]
[400694203,1767780643542,-150.0,0.00031344,2]
[400694204,1767780643552,-150.0,0.00031344,2]
[400694205,1767780643563,-200.0,0.00031344,2]
[400694206,1767780643573,-2748.0,0.000314,5]
[400694207,1767780643583,-1647.7407311,0.00031651,2]
[400694208,1767780643592,-370.91026638,0.00031663,2]
[400694209,1767780643603,-177.3371946,0.00032004,2]
[400694210,1767780643613,-509.0,0.0003201,4]
[400694211,1767780643624,-500.0,0.00032027,2]
[400694212,1767780643635,-601.0,0.000321,2]
[400694213,1767780643646,-503.51722906,0.00032163,14]
[400694214,1767780643656,-500.0,0.00032163,14]
[400694215,1767780643665,-500.0,0.00032163,14]
[400694216,1767780643678,-500.0,0.00032163,14]
[400694217,1767780643688,-500.0,0.00032163,14]
[400694218,1767780643697,-500.0,0.00032163,14]
[400694219,1767780643707,-30000.0,0.00032164,30]
[400694220,1767780643717,-1000.0,0.000323,2]
[400694221,1767780643726,-785.08,0.000323,30]
[400694222,1767780643736,-4818.0,0.00032516,2]
[400694223,1767780643747,-568.55,0.00032516,2]
[400694224,1767780643756,-6551.0,0.00032516,2]
[400694225,1767780643765,-184.6862361,0.00032712,2]
[400694226,1767780643775,-200.0,0.000328,2]
[400694227,1767780643784,-158.25601146,0.00032874,2]
[400694228,1767780643793,-1799.12344413,0.000329,120]
[400694229,1767780643802,-645.27,0.000329,14]
[400694230,1767780643811,-158.54802209,0.00032917,2]
[400694231,1767780643820,-384.63394623,0.00033032,2]
[400694232,1767780643829,-509.0,0.00033076,5]
[400694233,1767780643838,-200.0,0.00033128,2]
[400694234,1767780643847,-150.0,0.00033378,2]
[400694235,1767780643856,-150.0,0.00033378,2]
[400694236,1767780643865,-150.133,0.00033378,2]
[400694237,1767780643874,-210.242,0.00033378,2]
[400694238,1767780643883,-785.08,0.000334,30]
[400694239,1767780643892,-150.0,0.00033405,2]
[400694240,1767780643901,-150.0,0.00033405,2]
[400694241,1767780643911,-151.0,0.00033429,14]
[400694242,1767780643922,-190.899,0.00033432,2]
[400694243,1767780643932,-150.0,0.00033432,2]
[400694244,1767780643942,-150.0,0.00033432,2]
[400694245,1767780643951,-150.0,0.00033432,2]
[400694246,1767780643960,-150.0,0.00033432,2]
[400694247,1767780643970,-161.58,0.00033432,2]
[400694248,1767780643979,-1330.0,0.00033432,2]
[400694249,1767780643988,-3467.0,0.00033432,2]
[400694250,1767780643998,-1405.0,0.00033432,2]
[400694251,1767780644007,-619.404,0.00033432,2]
[400694252,1767780644016,-505.0,0.00033432,2]
[400694253,1767780644025,-200.0,0.00033459,2]
[400694254,1767780644034,-927.38,0.000335,14]
[400694255,1767780644043,-912.23547312,0.00033602,2]
[400694256,1767780644052,-645.27,0.000337,14]
[400694257,1767780644061,-236.86849515,0.00033863,11]
[400694258,1767780644070,-1799.12344413,0.000339,120]
[400694259,1767780644080,-2638.8599379,0.00033906,2]
[400694260,1767780644090,-6520.3281964,0.00033906,2]
[400694261,1767780644100,-298.48,0.00034062,120]
[400694262,1767780644109,-509.0,0.00034143,6]
[400694263,1767780644119,-150.0,0.00034344,2]
[400694264,1767780644129,-150.0,0.00034344,2]
[400694265,1767780644138,-398.86540225,0.00034401,2]
[400694266,1767780644147,-158.54802209,0.00034649,2]
[400694267,1767780644157,-927.38,0.000347,14]
[400694268,1767780644166,-785.08,0.000347,30]
[400694269,1767780644175,-645.27,0.000347,14]
[400694270,1767780644184,-1000.0,0.0003482,7]
[400694271,1767780644194,-1799.12344413,0.000349,120]
[400694272,1767780644204,-587.64316571,0.00034935,30]
[400694273,1767780644214,-509.0,0.00035209,8]
[400694274,1767780644223,-2212.7452,0.0003522,30]
[400694275,1767780644232,-30759.29733124,0.00035459,5]
[400694276,1767780644242,-1688.95959214,0.00035471,5]
[400694277,1767780644251,-245.4,0.000355,13]
[400694278,1767780644260,-288.8,0.000355,13]
[400694279,1767780644270,-4818.0,0.00035516,2]
[400694280,1767780644280,-565.0,0.00035516,2]
[400694281,1767780644290,-6551.0,0.00035516,2]
[400694282,1767780644299,-241.43,0.00035537,2]
[400694283,1767780644309,-432.13555839,0.00035554,2]
[400694284,1767780644318,-708.0,0.00035616,18]
[400694285,1767780644328,-156.69541014,0.00035616,105]
[400694286,1767780644339,-670.8,0.00035616,27]
[400694287,1767780644351,-1483.795,0.00035667,42]
[400694288,1767780644363,-163.592,0.00035667,42]
[400694289,1767780644374,-927.38,0.000357,14]
[400694290,1767780644384,-645.27,0.000357,14]
[400694291,1767780644394,-630.07344,0.00035888,30]
[400694292,1767780644405,-1799.12344413,0.000359,120]
[400694293,1767780644416,-630.07344,0.00036088,30]
[400694294,1767780644427,-1000.0,0.000362,7]
[400694295,1767780644442,-1081.85,0.000362,14]
[400694296,1767780644451,-509.0,0.00036275,9]
[400694297,1767780644461,-630.07344,0.00036288,30]
[400694298,1767780644472,-152.0,0.00036299,3]
[400694299,1767780644482,-890.605255,0.00036328,7]
[400694300,1767780644492,-1000.0,0.00036375,7]
[400694301,1767780644502,-150.0,0.00036378,2]
[400694302,1767780644513,-150.0,0.00036378,2]
[400694303,1767780644523,-150.0,0.00036378,2]
[400694304,1767780644533,-150.0,0.00036378,2]
[400694305,1767780644543,-158.54802215,0.00036382,2]
[400694306,1767780644552,-150.0,0.00036405,2]
[400694307,1767780644561,-150.0,0.00036405,2]
[400694308,1767780644571,-150.0,0.00036432,2]
[400694309,1767780644580,-150.0,0.00036432,2]
[400694310,1767780644589,-150.0,0.00036432,2]
[400694311,1767780644599,-150.0,0.00036432,2]
[400694312,1767780644609,-1330.0,0.00036432,2]
[400694313,1767780644618,-3467.0,0.00036432,2]
[400694314,1767780644628,-1405.0,0.00036432,2]
[400694315,1767780644638,-614.0,0.00036432,2]
[400694316,1767780644648,-505.0,0.00036432,2]
[400694317,1767780644658,-1000.0,0.00036433,7]
[400694318,1767780644668,-630.07344,0.00036488,30]
[400694319,1767780644678,-2638.8599379,0.00036492,2]
[400694320,1767780644687,-6520.3281964,0.00036492,2]
[400694321,1767780644697,-927.38,0.000365,14]
[400694322,1767780644706,-160.0,0.000365,17]
[400694323,1767780644715,-160.0,0.000365,17]
[400694324,1767780644724,-1000.0,0.000365,7]
[400694325,1767780644733,-1000.0,0.00036586,7]
[400694326,1767780644743,-645.27,0.000366,14]
[400694327,1767780644752,-1000.0,0.00036683,7]
[400694328,1767780644761,-630.07344,0.00036688,30]
[400694329,1767780644771,-987.62624517,0.00036724,7]
[400694330,1767780644780,-492.93948843,0.0003681,7]
[400694331,1767780644790,-150.1,0.00036821,2]
[400694332,1767780644799,-150.1,0.00036821,2]
[400694333,1767780644809,-150.1,0.00036821,2]
[400694334,1767780644818,-163.90468149,0.00036821,2]
[400694335,1767780644829,-630.07344,0.00036888,30]
[400694336,1767780644841,-1000.0,0.00036903,7]
[400694337,1767780644853,-1799.12344413,0.00037,120]
[400694338,1767780644863,-1000.0,0.00037008,7]
[400694339,1767780644873,-1000.0,0.00037037,7]
[400694340,1767780644882,-630.07344,0.00037088,30]
[400694341,1767780644892,-912.23547312,0.00037162,2]
[400694342,1767780644902,-221.13408838,0.000372,120]
[400694343,1767780644911,-295.94924026,0.00037261,120]
[400694344,1767780644920,-630.07344,0.00037288,30]
[400694345,1767780644930,-645.27,0.000373,14]
[400694346,1767780644940,-1081.85,0.000373,14]
[400694347,1767780644949,-509.0,0.00037342,10]
[400694348,1767780644959,-150.0,0.00037344,2]
[400694349,1767780644968,-1000.0,0.000374,7]
[400694350,1767780644978,-1000.0,0.00037472,7]
[400694351,1767780644988,-1000.0,0.0003748,7]
[400694352,1767780644997,-630.07344,0.00037488,30]
[400694353,1767780645008,-160.0,0.000375,22]
[400694354,1767780645017,-160.0,0.000375,22]
[400694355,1767780645027,-1000.0,0.00037574,7]
[400694356,1767780645037,-785.08,0.000376,30]
[400694357,1767780645046,-300.0,0.00037628,2]
[400694358,1767780645055,-630.07344,0.00037688,30]
[400694359,1767780645065,-500.0,0.000377,120]
[400694360,1767780645074,-300.0,0.00037772,2]
[400694361,1767780645083,-298.48,0.00037847,120]
[400694362,1767780645092,-630.07344,0.00037888,30]
[400694363,1767780645101,-645.27,0.000379,14]
[400694364,1767780645110,-300.0,0.00037953,2]
[400694365,1767780645119,-300.0,0.00037978,2]
[400694366,1767780645128,-500.0,0.0003798,120]
[400694367,1767780645138,-300.0,0.00037981,2]
[400694368,1767780645147,-300.0,0.00037996,2]
[400694369,1767780645156,-500.01,0.00038,30]
[400694370,1767780645165,-160.0,0.00038,24]
[400694371,1767780645175,-160.0,0.00038,24]
[400694372,1767780645184,-288.8,0.00038,24]
[400694373,1767780645193,-175.0,0.00038,30]
[400694374,1767780645203,-168.0,0.00038,30]
[400694375,1767780645213,-1000.0,0.00038067,7]
[400694376,1767780645222,-1000.0,0.0003807,7]
[400694377,1767780645232,-1000.0,0.00038071,7]
[400694378,1767780645242,-1000.0,0.00038072,7]
[400694379,1767780645251,-300.0,0.00038077,2]
[400694380,1767780645261,-300.0,0.00038086,2]
[400694381,1767780645271,-1000.0,0.00038087,7]
[400694382,1767780645281,-630.07344,0.00038088,30]
[400694383,1767780645291,-300.0,0.00038108,2]
[400694384,1767780645301,-300.0,0.00038123,2]
[400694385,1767780645311,-300.0,0.00038125,2]
[400694386,1767780645320,-150.0,0.00038128,7]
[400694387,1767780645330,-300.0,0.0003813,2]
[400694388,1767780645341,-300.0,0.00038133,2]
[400694389,1767780645351,-150.0,0.00038135,7]
[400694390,1767780645360,-300.0,0.00038142,2]
[400694391,1767780645371,-1037.09746501,0.00038147,7]
[400694392,1767780645380,-1000.0,0.00038171,7]
[400694394,1767780645393,-150.0,0.00038185,7]
[400694395,1767780645403,-1000.0,0.00038191,7]
[400694396,1767780645413,-178.94,0.00038195,2]
[400694397,1767780645423,-300.0,0.00038203,2]
[400694398,1767780645433,-1000.0,0.0003821,7]
[400694399,1767780645446,-1000.0,0.00038222,7]
[400694400,1767780645457,-300.0,0.00038225,2]
[400694401,1767780645468,-300.0,0.0003823,2]
[400694402,1767780645479,-1000.0,0.00038235,7]
[400694403,1767780645489,-231.32275,0.0003824,99]
[400694404,1767780645498,-231.32275,0.0003824,99]
[400694405,1767780645509,-231.32275,0.0003824,99]
[400694406,1767780645519,-231.32275,0.0003824,99]
[400694407,1767780645529,-1000.0,0.00038241,7]
[400694408,1767780645539,-1000.0,0.00038243,7]
[400694409,1767780645550,-1000.0,0.00038248,7]
[400694410,1767780645559,-300.0,0.00038251,2]
[400694411,1767780645569,-1000.0,0.00038256,7]
[400694412,1767780645579,-300.0,0.00038259,2]
[400694413,1767780645588,-1000.0,0.0003826,7]
[400694414,1767780645597,-154.72923285,0.00038262,7]
[400694415,1767780645607,-300.0,0.00038265,2]
[400694416,1767780645618,-1000.0,0.00038267,7]
[400694417,1767780645627,-300.0,0.00038269,2]
[400694418,1767780645637,-300.0,0.00038273,2]
[400694419,1767780645646,-300.0,0.00038274,2]
[400694420,1767780645655,-300.0,0.00038277,2]
[400694421,1767780645664,-300.0,0.00038282,2]
[400694422,1767780645675,-300.0,0.00038288,2]
[400694423,1767780645685,-630.07344,0.00038288,30]
[400694424,1767780645694,-300.0,0.0003829,2]
[400694425,1767780645704,-927.38,0.000383,14]
[400694426,1767780645811,-785.08,0.000383,30]
[400694427,1767780645821,-300.0,0.00038306,2]
[400694428,1767780645830,-300.0,0.00038306,2]
[400694429,1767780645840,-300.0,0.00038313,2]
[400694430,1767780645849,-200.0,0.00038321,10]
[400694431,1767780645859,-300.0,0.00038327,2]
[400694432,1767780645869,-300.0,0.00038334,2]
[400694433,1767780645878,-150.0,0.00038334,7]
[400694434,1767780645887,-300.0,0.00038346,2]
[400694435,1767780645897,-300.0,0.00038346,2]
[400694436,1767780645906,-151.0,0.00038353,14]
[400694437,1767780645915,-500.0,0.00038355,14]
[400694438,1767780645926,-500.0,0.00038355,14]
[400694439,1767780645935,-500.0,0.00038355,14]
[400694440,1767780645944,-621.72362606,0.00038355,14]
[400694441,1767780645953,-150.0,0.00038355,20]
[400694442,1767780645962,-516.18277591,0.00038355,14]
[400694443,1767780645971,-500.0,0.00038356,14]
[400694444,1767780645981,-500.0,0.00038356,14]
[400694445,1767780645990,-447.68727968,0.00038356,14]
[400694446,1767780646000,-500.0,0.00038356,14]
[400694447,1767780646009,-549.30670969,0.00038356,14]
[400694448,1767780646018,-500.0,0.00038356,14]
[400694449,1767780646027,-500.0,0.00038356,14]
[400694450,1767780646036,-500.0,0.00038356,14]
[400694451,1767780646046,-500.0,0.00038356,14]
[400694452,1767780646055,-500.0,0.00038356,14]
[400694453,1767780646065,-500.0,0.00038356,14]
[400694454,1767780646074,-500.0,0.00038356,14]
[400694455,1767780646084,-500.0,0.00038356,14]
[400694456,1767780646093,-500.0,0.00038356,14]
[400694457,1767780646103,-522.07745827,0.00038356,14]
[400694458,1767780646112,-500.0,0.00038356,14]
[400694459,1767780646121,-500.0,0.00038356,14]
[400694460,1767780646130,-500.0,0.00038356,14]
[400694461,1767780646139,-500.0,0.00038356,14]
[400694462,1767780646148,-288.45666647,0.00038356,14]
[400694463,1767780646159,-500.0,0.00038356,14]
[400694464,1767780646170,-537.01,0.00038356,14]
[400694465,1767780646179,-1704.93,0.00038356,14]
[400694466,1767780646189,-500.0,0.00038356,14]
[400694467,1767780646197,-500.0,0.00038356,14]
[400694468,1767780646207,-1820.72,0.00038356,14]
[400694469,1767780646216,-500.0,0.00038356,14]
[400694470,1767780646225,-500.0,0.00038356,14]
[400694471,1767780646235,-500.0,0.00038356,14]
[400694472,1767780646244,-500.0,0.00038356,14]
[400694473,1767780646253,-500.0,0.00038356,14]
[400694474,1767780646262,-500.0,0.00038356,14]
[400694475,1767780646271,-500.0,0.00038356,14]
[400694476,1767780646281,-500.0,0.00038356,14]
[400694477,1767780646290,-500.0,0.00038356,14]
[400694478,1767780646299,-500.0,0.00038356,14]
[400694479,1767780646309,-894.68,0.00038356,14]
[400694480,1767780646319,-500.0,0.00038356,14]
[400694481,1767780646328,-500.0,0.00038356,14]
[400694482,1767780646337,-412.35683429,0.00038356,14]
[400694483,1767780646346,-500.0,0.00038356,14]
[400694484,1767780646356,-500.0,0.00038356,14]
[400694485,1767780646365,-500.0,0.00038356,14]
[400694486,1767780646374,-500.0,0.00038356,14]
[400694487,1767780646383,-500.0,0.00038356,2]
[400694488,1767780646392,-500.0,0.00038356,14]
[400694490,1767780646402,-844.4,0.00038356,14]
[400694492,1767780646411,-500.0,0.00038356,14]
[400694494,1767780646421,-500.0,0.00038356,14]
[400694496,1767780646432,-622.71093361,0.00038356,14]
[400694497,1767780646442,-500.0,0.00038356,14]